[Event "Hasselbacken Open 2018"]
[Site "Stockholm"]
[Date "2018.11.02"]
[Round "1"]
[White "Lindberg, Bengt"]
[Black "Falkevall, Axel"]
[Result "1-0"]
[ECO "C18"]
[WhiteElo "2401"]
[BlackElo "1928"]
[Annotator "NA"]
[PlyCount "64"]
[EventDate "2018.11.02"]
[EventCountry "SWE"]
[SourceTitle "playchess.com"]
[Source "ChessBase"]
[SourceQuality "1"]
[TimeControl "900+5"]

1. e4 {[%emt 0:00:00]} e6 {[%emt 0:00:00]} 2. d4 {[%emt 0:00:03]} d5 {[%emt 0:00:00]} 3. Nc3 {[%emt 0:00:02]} Bb4 {[%emt 0:00:01]} 4. e5 {[%emt 0:00:03]} c5 {[%emt 0:00:02]} 5. a3 {[%emt 0:00:02]} Bxc3+ {[%emt 0:00:03]} 6. bxc3 {[%emt 0:00:03]} Ne7 {[%emt 0:00:02] LiveBook: 7888 Games} 7. h4 {[%emt 0:00:02]} Bd7 {[%emt 0:00:07]} 8. h5 {[%emt 0:00:30] C18: French: 3 Nc3 Bb4: Main line: 7 h4 and 7 Qg4} (8. a4 Qa5 9. Bd2 c4 10. h5 h6 11. Rh3 Bxa4 12. Bc1 Nbc6 13. Qd2 b5 14. Ba3 Kd7 15. Rf3 Raf8 {1-0 (51) Kulaots,K (2588)-Dann,M (2493) Karlsruhe 2017}) 8... h6 {[%emt 0:00:19]} 9. Rh4 {[%emt 0:00:32]} Nf5 {[%emt 0:01:11]} 10. Rf4 {[%emt 0:00:10]} Nc6 {[%emt 0:01:10]} 11. Nf3 $146 {[%emt 0:00:08]} ({Predecessor:} 11. g4 Nh4 12. Nf3 Nxf3+ 13. Qxf3 Qb6 14. Qe3 Rc8 15. Bd3 a5 {1-0 (43) Cuellar Elisvan,D (2350)-Nino,J (2093) Bogota 2013}) 11... Qc7 {[%emt 0:00:55]} 12. g4 {[%emt 0:00:16]} Nfe7 {[%emt 0:00:05]} 13. Bd3 {[%emt 0:00:48]} c4 {[%emt 0:00:18]} 14. Bf1 {[%emt 0:00:23]} Rf8 {[%emt 0:02:04]} 15. a4 {[%emt 0:00:23]} O-O-O {[%emt 0:00:15]} 16. Ba3 {[%emt 0:04:24]} f6 $11 {[%emt 0:00:11]} 17. Bd6 {[%emt 0:00:03]} Qa5 {[%emt 0:00:03]} 18. Qd2 {[%emt 0:00:18]} fxe5 {[%emt 0:00:25]} 19. Rxf8 {[%emt 0:00:02]} Rxf8 {[%emt 0:00:07]} 20. Nxe5 {[%emt 0:00:03]} Nxe5 {[%emt 0:01:23]} 21. dxe5 {[%emt 0:00:08]} Rf7 {[%emt 0:00:17]} 22. f4 {[%emt 0:01:27]} Nc6 {[%emt 0:00:50]} 23. Bg2 {[%emt 0:00:55]} Qd8 {[%emt 0:01:49]} 24. Qf2 {[%emt 0:00:45]} Qa5 {[%emt 0:00:26]} 25. Ra3 {[%emt 0:00:15]} b5 {[%emt 0:01:07]} 26. f5 {[%emt 0:00:45]} b4 {[%emt 0:00:21]} 27. cxb4 {[%emt 0:00:49]} Nxb4 {[%emt 0:00:05]} 28. Kd1 {[%emt 0:00:02]} Bc6 {[%emt 0:02:18]} 29. Qd2 {[%emt 0:00:46]} c3 {[%emt 0:00:33]} 30. Rxc3 {[%emt 0:00:25]} d4 {[%emt 0:00:37]} 31. Qxd4 {[%emt 0:00:27]} Qa6 {[%emt 0:00:25]} 32. Qxb4 {[%emt 0:00:13]} Rb7 {[%emt 0:00:11]} 1-0

[Event "Hasselbacken Open 2018"]
[Site "Stockholm"]
[Date "2018.11.02"]
[Round "1"]
[White "Lindgren, Philip"]
[Black "Ranby, Hans"]
[Result "1-0"]
[ECO "E15"]
[WhiteElo "2374"]
[BlackElo "1925"]
[Annotator "NA"]
[PlyCount "75"]
[EventDate "2018.11.02"]
[EventCountry "SWE"]
[SourceTitle "playchess.com"]
[Source "ChessBase"]
[SourceQuality "1"]
[TimeControl "900+5"]

1. d4 {[%emt 0:00:00]} Nf6 {[%emt 0:00:00]} 2. c4 {[%emt 0:00:01]} e6 {[%emt 0:00:02]} 3. Nf3 {[%emt 0:00:05]} b6 {[%emt 0:00:04]} 4. g3 {[%emt 0:00:05]} Bb7 {[%emt 0:00:05]} 5. Bg2 {[%emt 0:00:04]} c5 {[%emt 0:00:22]} 6. d5 {[%emt 0:00:30]} exd5 {[%emt 0:00:10]} 7. Nh4 {[%emt 0:00:12]} Be7 {[%emt 0:00:38]} 8. Nc3 {[%emt 0:00:51]} O-O {[%emt 0:00:45]} 9. Nf5 {[%emt 0:01:12]} d6 $14 {[%emt 0:00:19]} 10. O-O {[%emt 0:01:59]} Nc6 {[%emt 0:00:33]} 11. cxd5 {[%emt 0:01:02]} Ne5 {[%emt 0:00:15]} 12. f4 {[%emt 0:01:14]} Ng6 {[%emt 0:00:26]} 13. e4 {[%emt 0:00:07]} Re8 {[%emt 0:00:44]} 14. Nxe7+ {[%emt 0:00:38]} Qxe7 {[%emt 0:00:11]} 15. Qf3 {[%emt 0:00:51]} Rad8 {[%emt 0:01:16]} 16. Bd2 Qc7 {[%emt 0:00:30]} 17. Rae1 {[%emt 0:00:54]} Ba6 {[%emt 0:00:44]} 18. Rf2 {[%emt 0:00:11]} b5 {[%emt 0:00:04]} 19. h3 {[%emt 0:02:20]} Qb6 {[%emt 0:00:48]} 20. Kh2 {[%emt 0:00:06]} b4 {[%emt 0:00:15]} 21. Nd1 {[%emt 0:00:37]} Rc8 {[%emt 0:00:26]} 22. b3 {[%emt 0:01:21]} c4 {[%emt 0:00:30]} 23. Be3 {[%emt 0:01:36]} Qb7 {[%emt 0:00:18]} 24. Bd4 {[%emt 0:00:31]} Nxd5 {[%emt 0:00:41]} 25. e5 {[%emt 0:00:13]} dxe5 {[%emt 0:00:28]} 26. fxe5 {[%emt 0:00:04]} Rcd8 {[%emt 0:00:24]} 27. bxc4 {[%emt 0:00:13]} Bxc4 {[%emt 0:00:13]} 28. Ne3 {[%emt 0:00:07]} Qb5 {[%emt 0:00:27]} 29. Qxf7+ {[%emt 0:00:09]} Kh8 {[%emt 0:00:06]} 30. e6 {[%emt 0:00:05]} Rg8 {[%emt 0:01:06]} 31. Nf5 {[%emt 0:00:01]} Nf6 {[%emt 0:02:26]} 32. Bxf6 {[%emt 0:00:03]} Qxf5 {[%emt 0:00:02]} 33. Rxf5 {[%emt 0:00:05]} Rd2 {[%emt 0:00:14]} 34. Ba1 {[%emt 0:00:08]} Bd5 {[%emt 0:00:16]} 35. Rxd5 {[%emt 0:00:06]} Rxa2 {[%emt 0:00:07]} 36. Rd7 {[%emt 0:00:06]} Rxa1 {[%emt 0:00:23]} 37. Rxa1 {[%emt 0:00:02]} Ne5 {[%emt 0:00:02]} 38. Qxg8+ {[%emt 0:00:04]} 1-0

[Event "Hasselbacken Open 2018"]
[Site "Stockholm"]
[Date "2018.11.02"]
[Round "1"]
[White "Schneider, Stefan"]
[Black "Kahtan, Mohamed"]
[Result "1-0"]
[ECO "D35"]
[WhiteElo "2365"]
[BlackElo "1912"]
[Annotator "NA"]
[PlyCount "117"]
[EventDate "2018.11.02"]
[EventCountry "SWE"]
[SourceTitle "playchess.com"]
[Source "ChessBase"]
[SourceQuality "1"]
[TimeControl "900+5"]

1. d4 {[%emt 0:00:27]} d5 {[%emt 0:00:00]} 2. c4 {[%emt 0:00:04]} e6 {[%emt 0:00:04]} 3. Nc3 {[%emt 0:00:03]} Nf6 {[%emt 0:00:03]} 4. cxd5 {[%emt 0:00:04]} exd5 {[%emt 0:00:03]} 5. Bg5 c6 {[%emt 0:00:04]} 6. e3 {[%emt 0:00:07]} Be7 {[%emt 0:00:03]} 7. Bd3 {[%emt 0:00:10]} h6 {[%emt 0:00:05]} 8. Bh4 {[%emt 0:00:04]} Nbd7 {[%emt 0:00:24]} 9. Qc2 {[%emt 0:00:15]} O-O {[%emt 0:00:06]} 10. Nge2 {[%emt 0:01:29]} Re8 {[%emt 0:00:05]} 11. O-O {[%emt 0:00:04]} Nf8 {[%emt 0:00:17]} 12. Rae1 {[%emt 0:00:25]} Qc7 {[%emt 0:00:56]} 13. Bxf6 {[%emt 0:00:18]} Bxf6 {[%emt 0:00:08]} 14. Nxd5 {[%emt 0:00:04]} Qd6 {[%emt 0:00:03]} 15. Nxf6+ {[%emt 0:00:07]} Qxf6 {[%emt 0:00:02]} 16. Ng3 {[%emt 0:00:24]} Ne6 {[%emt 0:00:22]} 17. Ne4 {[%emt 0:00:56]} Qe7 {[%emt 0:00:04]} 18. Rc1 {[%emt 0:00:21]} Bd7 {[%emt 0:00:05]} 19. Nc5 {[%emt 0:00:33]} Nxc5 {[%emt 0:00:08]} 20. Qxc5 {[%emt 0:00:04]} Qf6 {[%emt 0:00:06]} 21. Rfe1 {[%emt 0:00:54]} Rad8 {[%emt 0:00:44]} 22. Qxa7 {[%emt 0:01:08]} Bc8 {[%emt 0:00:02]} 23. Red1 {[%emt 0:01:30]} Rd5 {[%emt 0:00:05]} 24. Rc5 {[%emt 0:00:13]} Red8 {[%emt 0:00:27]} 25. Rxd5 {[%emt 0:00:13]} Rxd5 {[%emt 0:00:03]} 26. Qb8 {[%emt 0:00:08]} Rd8 {[%emt 0:00:20]} 27. Qe5 {[%emt 0:00:45]} Qxe5 {[%emt 0:00:59]} 28. dxe5 {[%emt 0:00:02]} Bf5 {[%emt 0:00:29]} 29. Bc2 {[%emt 0:00:50]} Rxd1+ {[%emt 0:00:06]} 30. Bxd1 {[%emt 0:00:01]} Kf8 {[%emt 0:00:01]} 31. f4 {[%emt 0:00:38]} Ke7 {[%emt 0:00:03]} 32. Kf2 {[%emt 0:00:04]} Be4 {[%emt 0:00:05]} 33. Bb3 {[%emt 0:00:12]} g5 {[%emt 0:00:21]} 34. g3 {[%emt 0:00:08]} c5 {[%emt 0:00:14]} 35. Bc4 {[%emt 0:00:24]} g4 {[%emt 0:00:25]} 36. Ke2 {[%emt 0:00:48]} Bc6 {[%emt 0:00:56]} 37. a3 {[%emt 0:00:25]} b5 {[%emt 0:00:06]} 38. Bd3 {[%emt 0:00:03]} Ke6 {[%emt 0:00:16]} 39. e4 {[%emt 0:00:04]} c4 {[%emt 0:00:11]} 40. Bc2 {[%emt 0:00:02]} h5 {[%emt 0:01:48]} 41. Ke3 {[%emt 0:00:01]} Be8 {[%emt 0:00:03]} 42. Kd4 {[%emt 0:00:03]} Bc6 {[%emt 0:00:12]} 43. Bd1 {[%emt 0:00:10]} Bd7 {[%emt 0:00:16]} 44. Be2 {[%emt 0:00:02]} Bc6 {[%emt 0:00:05]} 45. Bf1 {[%emt 0:00:09]} Bd7 {[%emt 0:00:04]} 46. f5+ {[%emt 0:00:33]} Ke7 {[%emt 0:00:01]} 47. Kc5 {[%emt 0:00:04]} Be8 {[%emt 0:00:03]} 48. Be2 {[%emt 0:00:04]} Bd7 {[%emt 0:00:01]} 49. Bf1 {[%emt 0:00:09]} Be8 {[%emt 0:00:02]} 50. Bg2 {[%emt 0:00:14]} Bd7 {[%emt 0:00:01]} 51. Kd4 {[%emt 0:00:01]} Be8 {[%emt 0:00:04]} 52. Bf1 {[%emt 0:00:01]} Bd7 {[%emt 0:00:02]} 53. Be2 {[%emt 0:00:02]} Be8 {[%emt 0:00:02]} 54. Bd1 {[%emt 0:00:09]} Bd7 {[%emt 0:00:02]} 55. Bc2 {[%emt 0:00:04]} Be8 {[%emt 0:00:01]} 56. a4 {[%emt 0:00:10]} bxa4 {[%emt 0:00:05]} 57. Kxc4 {[%emt 0:00:03]} Bc6 {[%emt 0:00:11]} 58. Kc5 {[%emt 0:00:03]} Bd7 {[%emt 0:00:05]} 59. Bd3 {[%emt 0:00:03]} 1-0

[Event "Hasselbacken Open 2018"]
[Site "Stockholm"]
[Date "2018.11.02"]
[Round "1"]
[White "Kallstrom, Michael"]
[Black "Brynell, Stellan"]
[Result "0-1"]
[ECO "C07"]
[WhiteElo "1926"]
[BlackElo "2398"]
[Annotator "NA"]
[PlyCount "59"]
[EventDate "2018.11.02"]
[EventCountry "SWE"]
[SourceTitle "playchess.com"]
[Source "ChessBase"]
[SourceQuality "1"]
[TimeControl "900+5"]

1. e4 {[%emt 0:00:03]} e6 {[%emt 0:00:00]} 2. d4 {[%emt 0:00:04]} d5 {[%emt 0:00:00]} 3. Nd2 {[%emt 0:00:04]} c5 {[%emt 0:00:02]} 4. Ngf3 {[%emt 0:00:08]} a6 {[%emt 0:00:07]} 5. exd5 {[%emt 0:00:28]} exd5 {[%emt 0:00:03]} 6. c3 {[%emt 0:00:33]} Nf6 {[%emt 0:00:11]} 7. dxc5 {[%emt 0:01:18]} Bxc5 {[%emt 0:00:02]} 8. Nb3 {[%emt 0:00:07]} Bb6 {[%emt 0:00:03]} 9. Bg5 {[%emt 0:01:06]} Bxf2+ {[%emt 0:00:49]} 10. Kxf2 {[%emt 0:00:57]} Ne4+ {[%emt 0:00:02]} 11. Kg1 {[%emt 0:02:20]} Nxg5 {[%emt 0:00:02]} 12. Qe1+ {[%emt 0:01:38]} Be6 {[%emt 0:00:51]} 13. Nfd4 {[%emt 0:00:53]} O-O {[%emt 0:00:31]} 14. h4 {[%emt 0:01:23]} Ne4 {[%emt 0:00:07]} 15. Bd3 {[%emt 0:00:03]} Nc6 {[%emt 0:02:24]} 16. Nxe6 {[%emt 0:00:40]} fxe6 {[%emt 0:00:04]} 17. Bxe4 {[%emt 0:00:14]} dxe4 {[%emt 0:00:04]} 18. Qxe4 {[%emt 0:02:26]} e5 {[%emt 0:00:03]} 19. Qe2 {[%emt 0:01:11]} Qb6+ {[%emt 0:00:44]} 20. Kh2 {[%emt 0:00:02]} Rf4 {[%emt 0:00:09]} 21. Kh3 {[%emt 0:00:37]} Raf8 {[%emt 0:02:59]} 22. Rhf1 {[%emt 0:00:13]} Qd8 {[%emt 0:02:08]} 23. Rxf4 {[%emt 0:00:04]} Rxf4 {[%emt 0:00:24]} 24. g3 {[%emt 0:00:06]} Qd7+ {[%emt 0:00:06]} 25. Kh2 {[%emt 0:00:08]} Rf8 {[%emt 0:01:01]} 26. Rf1 {[%emt 0:00:04]} Qd5 {[%emt 0:00:32]} 27. Rxf8+ {[%emt 0:00:10]} Kxf8 {[%emt 0:00:01]} 28. Qf2+ {[%emt 0:00:05]} Kg8 {[%emt 0:00:38]} 29. Nc5 {[%emt 0:00:11]} e4 {[%emt 0:00:19]} 30. Nxb7 {[%emt 0:00:14]} 0-1

[Event "Hasselbacken Open 2018"]
[Site "Stockholm"]
[Date "2018.11.02"]
[Round "1"]
[White "Frisk, Hans"]
[Black "Seo, Jung Min"]
[Result "0-1"]
[ECO "A05"]
[WhiteElo "1924"]
[BlackElo "2369"]
[Annotator "NA"]
[PlyCount "82"]
[EventDate "2018.11.02"]
[EventCountry "SWE"]
[SourceTitle "playchess.com"]
[Source "ChessBase"]
[SourceQuality "1"]
[TimeControl "900+5"]

1. Nf3 {[%emt 0:00:00]} Nf6 {[%emt 0:00:00]} 2. c4 {[%emt 0:00:14]} b6 {[%emt 0:00:01]} 3. g3 {[%emt 0:00:15]} Bb7 {[%emt 0:00:08]} 4. Bg2 {[%emt 0:00:03]} g6 {[%emt 0:00:02]} 5. b3 {[%emt 0:00:22]} Bg7 {[%emt 0:00:02]} 6. Bb2 {[%emt 0:00:01]} c5 {[%emt 0:00:39]} 7. O-O {[%emt 0:00:14]} O-O {[%emt 0:00:02]} 8. e3 {[%emt 0:00:55]} d6 {[%emt 0:00:18]} 9. d4 {[%emt 0:01:00]} Nbd7 {[%emt 0:00:05]} 10. Nc3 {[%emt 0:00:47]} Rc8 {[%emt 0:00:11] A30: Symmetrical English: Double Fianchetto and Hedgehog} (10... Ne4 11. Rc1 Nxc3 12. Bxc3 Be4 13. Qe2 a6 14. Rfd1 Qb8 15. Bh3 Bxf3 16. Qxf3 Rd8 17. Bg2 Ra7 18. h4 b5 {½-½ (39) Karjakin,S (2763)-Dubov,D (2701) Moscow 2018}) 11. Qd2 $146 {[%emt 0:01:14]} ({Predecessor:} 11. d5 Re8 12. a4 Nf8 13. h3 Ra8 14. Re1 Bc8 15. Nh2 Bd7 16. e4 h5 17. f4 Qc8 18. h4 {1-0 (32) Lonyuk,B (1017)-Raines,D (1090) LSS email 2010}) 11... Qc7 {[%emt 0:00:17]} 12. Rac1 {[%emt 0:00:48]} Qb8 {[%emt 0:00:05]} 13. Rfd1 {[%emt 0:00:33]} Rfd8 {[%emt 0:00:04]} 14. d5 {[%emt 0:00:56]} a6 {[%emt 0:00:11]} 15. a4 {[%emt 0:00:02]} Nf8 {[%emt 0:00:17]} 16. e4 {[%emt 0:00:20]} e6 {[%emt 0:00:22]} 17. Re1 {[%emt 0:00:31]} Re8 {[%emt 0:00:13]} 18. Rcd1 {[%emt 0:00:17]} Rcd8 {[%emt 0:00:02]} 19. Bh3 $11 {[%emt 0:01:15]} Bc8 {[%emt 0:00:33]} 20. Nh4 {[%emt 0:01:34]} exd5 {[%emt 0:00:16]} 21. Bxc8 {[%emt 0:00:08]} Qxc8 {[%emt 0:00:16]} 22. exd5 {[%emt 0:00:12]} Qh3 {[%emt 0:00:20]} 23. f3 {[%emt 0:00:23]} N8d7 {[%emt 0:01:18]} 24. Rxe8+ {[%emt 0:00:42]} Rxe8 {[%emt 0:00:01]} 25. Re1 {[%emt 0:00:38]} Rxe1+ {[%emt 0:00:01]} 26. Qxe1 {[%emt 0:00:02]} Ne5 {[%emt 0:00:07]} 27. Ne4 {[%emt 0:00:31]} Nxe4 {[%emt 0:01:09]} 28. Qxe4 {[%emt 0:00:43]} Nxf3+ {[%emt 0:00:26]} 29. Nxf3 {[%emt 0:00:01]} Bxb2 {[%emt 0:00:02]} 30. Qe8+ {[%emt 0:00:05]} Kg7 {[%emt 0:00:00]} 31. Qxf7+ {[%emt 0:00:08]} Kxf7 {[%emt 0:00:04]} 32. Ng5+ {[%emt 0:00:02]} Kf6 {[%emt 0:00:13]} 33. Nxh3 {[%emt 0:00:01]} Kf5 {[%emt 0:00:53]} 34. Kf1 {[%emt 0:00:19]} g5 {[%emt 0:00:31]} 35. Nf2 {[%emt 0:00:16]} Bd4 {[%emt 0:00:06]} 36. h3 {[%emt 0:01:14]} Bxf2 {[%emt 0:00:49]} 37. Kxf2 {[%emt 0:00:02]} Ke4 {[%emt 0:00:01]} 38. Ke2 {[%emt 0:00:01]} h5 {[%emt 0:00:08]} 39. h4 {[%emt 0:00:57]} g4 {[%emt 0:00:15]} 40. Kf2 {[%emt 0:00:05]} Kd3 {[%emt 0:00:07]} 41. Ke1 {[%emt 0:00:14]} Ke3 {[%emt 0:00:12]} 0-1

[Event "Hasselbacken Open 2018"]
[Site "Stockholm"]
[Date "2018.11.02"]
[Round "1"]
[White "Myrene, Jon Kare"]
[Black "Ingbrandt, Johan"]
[Result "0-1"]
[ECO "B13"]
[WhiteElo "1909"]
[BlackElo "2364"]
[Annotator "NA"]
[PlyCount "59"]
[EventDate "2018.11.02"]
[EventCountry "SWE"]
[SourceTitle "playchess.com"]
[Source "ChessBase"]
[SourceQuality "1"]
[TimeControl "900+5"]

1. e4 {[%emt 0:00:00]} c6 {[%emt 0:00:00]} 2. d4 {[%emt 0:00:14]} d5 {[%emt 0:00:00]} 3. exd5 {[%emt 0:00:04]} cxd5 {[%emt 0:00:02]} 4. c4 {[%emt 0:00:03]} Nf6 {[%emt 0:00:04]} 5. Nf3 {[%emt 0:00:08]} Be6 {[%emt 0:01:06]} 6. Nc3 {[%emt 0:01:37]} dxc4 {[%emt 0:00:19]} 7. Ng5 {[%emt 0:00:40]} Bd5 {[%emt 0:00:36]} 8. Qa4+ {[%emt 0:01:00]} Nc6 {[%emt 0:01:18]} 9. Bxc4 {[%emt 0:01:19]} e6 {[%emt 0:00:27]} 10. O-O {[%emt 0:01:16]} Be7 {[%emt 0:01:08]} 11. Nxd5 $15 {[%emt 0:01:19]} Nxd5 {[%emt 0:00:12]} 12. Nf3 {[%emt 0:00:34]} O-O {[%emt 0:00:38]} 13. a3 {[%emt 0:00:27]} Nb6 {[%emt 0:00:23]} 14. Qc2 {[%emt 0:01:12]} Nxd4 {[%emt 0:00:39]} 15. Nxd4 {[%emt 0:00:02]} Qxd4 {[%emt 0:00:03]} 16. Ba2 {[%emt 0:00:26]} Rac8 {[%emt 0:00:23]} 17. Qe2 {[%emt 0:00:02]} Rfd8 {[%emt 0:01:36]} 18. Be3 {[%emt 0:00:17]} Qe4 {[%emt 0:00:39]} 19. Qh5 {[%emt 0:00:58]} g6 {[%emt 0:01:21]} 20. Qa5 {[%emt 0:00:17]} Rc6 {[%emt 0:00:12]} 21. Qxa7 {[%emt 0:00:50]} Nc4 {[%emt 0:01:08]} 22. Qxb7 {[%emt 0:00:39]} Nxe3 {[%emt 0:00:37]} 23. fxe3 {[%emt 0:00:26]} Kf8 {[%emt 0:00:12]} 24. Rae1 {[%emt 0:00:31]} Rdc8 {[%emt 0:00:18]} 25. Bb1 {[%emt 0:00:21]} Qe5 {[%emt 0:00:08]} 26. b4 {[%emt 0:00:24]} R6c7 {[%emt 0:00:02]} 27. Qf3 {[%emt 0:00:06]} Bd6 {[%emt 0:00:02]} 28. g3 {[%emt 0:00:07]} Kg7 {[%emt 0:00:14]} 29. Rc1 {[%emt 0:00:12]} Rxc1 {[%emt 0:00:50]} 30. Qxf7+ {[%emt 0:00:02] R1c7 Qf3} 0-1

[Event "Hasselbacken Open 2018"]
[Site "Stockholm"]
[Date "2018.11.02"]
[Round "2"]
[White "Brynell, Stellan"]
[Black "Eriksson, Jon"]
[Result "1-0"]
[ECO "D30"]
[WhiteElo "2398"]
[BlackElo "2080"]
[Annotator "ChessBase"]
[PlyCount "111"]
[EventDate "2018.11.02"]
[EventCountry "SWE"]
[SourceTitle "playchess.com"]
[Source "ChessBase"]
[SourceQuality "1"]
[TimeControl "900+5"]

1. d4 {[%emt 0:00:00]} d5 {[%emt 0:00:00]} 2. c4 {[%emt 0:00:04]} e6 {[%emt 0:00:00]} 3. Nf3 {[%emt 0:00:04]} c6 {[%emt 0:00:07]} 4. g3 {[%emt 0:00:09]} Nf6 {[%emt 0:00:45]} 5. Bg2 {[%emt 0:00:03]} Bd6 {[%emt 0:00:33]} 6. O-O {[%emt 0:00:25]} O-O {[%emt 0:00:02]} 7. Nc3 {[%emt 0:00:06]} Nbd7 {[%emt 0:00:03]} 8. Bg5 {[%emt 0:00:59]} h6 {[%emt 0:00:14]} 9. Bxf6 {[%emt 0:00:02]} Nxf6 {[%emt 0:00:16]} 10. Qc2 {[%emt 0:00:07]} b6 {[%emt 0:00:44]} 11. e4 {[%emt 0:00:06]} dxe4 {[%emt 0:00:12]} 12. Nxe4 {[%emt 0:00:02]} Nxe4 {[%emt 0:00:04]} 13. Qxe4 {[%emt 0:00:02]} Bb7 {[%emt 0:00:02]} 14. Rfd1 {[%emt 0:02:13]} Qe7 {[%emt 0:01:52]} 15. Ne5 {[%emt 0:00:06]} Bxe5 {[%emt 0:00:17]} 16. dxe5 {[%emt 0:00:09]} Rfd8 {[%emt 0:00:22]} 17. h4 {[%emt 0:01:17]} Rxd1+ {[%emt 0:00:10]} 18. Rxd1 {[%emt 0:00:01]} Rd8 {[%emt 0:00:02]} 19. Rd4 {[%emt 0:01:18]} Rxd4 {[%emt 0:03:59]} 20. Qxd4 {[%emt 0:00:02]} Kf8 {[%emt 0:00:06]} 21. Qd3 {[%emt 0:01:04]} Ke8 {[%emt 0:00:11]} 22. Qh7 {[%emt 0:00:40]} Qf8 {[%emt 0:00:17]} 23. h5 {[%emt 0:00:01]} Kd8 {[%emt 0:00:07]} 24. a3 {[%emt 0:01:43]} Kc7 {[%emt 0:00:09]} 25. b4 {[%emt 0:00:07]} a6 {[%emt 0:02:36]} 26. Kh2 {[%emt 0:01:23]} c5 {[%emt 0:00:36]} 27. Bxb7 {[%emt 0:00:02]} Kxb7 {[%emt 0:00:02]} 28. Qe4+ {[%emt 0:00:01]} Kc7 {[%emt 0:01:28]} 29. b5 {[%emt 0:00:02]} axb5 {[%emt 0:00:21]} 30. cxb5 Qe8 {[%emt 0:00:10]} 31. a4 {[%emt 0:00:02]} Kb8 {[%emt 0:00:41]} 32. Qg4 {[%emt 0:01:09]} Qf8 {[%emt 0:00:04]} 33. Kg1 {[%emt 0:00:11]} Ka7 {[%emt 0:00:01]} 34. Qe4 {[%emt 0:00:44]} Qe8 {[%emt 0:00:06]} 35. Qd3 {[%emt 0:00:35]} Qe7 {[%emt 0:00:27]} 36. Kf1 {[%emt 0:01:19]} Kb8 {[%emt 0:00:01]} 37. Qh7 {[%emt 0:00:09]} Qf8 {[%emt 0:00:01]} 38. Ke2 {[%emt 0:00:10]} Kc7 {[%emt 0:00:04]} 39. Qe4 {[%emt 0:00:08]} Qe8 {[%emt 0:00:03]} 40. f4 {[%emt 0:00:36]} Kb8 {[%emt 0:00:08]} 41. Qh7 {[%emt 0:00:09]} Qf8 {[%emt 0:00:01]} 42. g4 {[%emt 0:00:10]} Kc7 {[%emt 0:00:01]} 43. g5 {[%emt 0:00:06]} Kb8 {[%emt 0:00:29]} 44. Qe4 {[%emt 0:00:09]} Qe8 {[%emt 0:00:03]} 45. g6 {[%emt 0:00:08]} fxg6 {[%emt 0:00:12]} 46. hxg6 {[%emt 0:00:01]} Kc7 {[%emt 0:00:07]} 47. f5 {[%emt 0:00:19]} exf5 {[%emt 0:00:04]} 48. Qxf5 {[%emt 0:00:01]} Kd8 {[%emt 0:00:26]} 49. e6 {[%emt 0:00:31]} Qe7 {[%emt 0:00:12]} 50. Qd5+ {[%emt 0:00:02]} Ke8 {[%emt 0:00:02]} 51. Qa8+ {[%emt 0:00:10]} Qd8 {[%emt 0:00:02]} 52. Qxd8+ {[%emt 0:00:02]} Kxd8 {[%emt 0:00:01]} 53. a5 {[%emt 0:00:00]} bxa5 54. b6 {[%emt 0:00:02]} a4 {[%emt 0:00:05]} 55. b7 {[%emt 0:00:01]} Kc7 {[%emt 0:00:01]} 56. e7 {[%emt 0:00:01]} 1-0

[Event "Hasselbacken Open 2018"]
[Site "Stockholm"]
[Date "2018.11.02"]
[Round "2"]
[White "Seo, Jung Min"]
[Black "Rasti, Arvin"]
[Result "1-0"]
[ECO "B12"]
[WhiteElo "2369"]
[BlackElo "2064"]
[Annotator "NA"]
[PlyCount "103"]
[EventDate "2018.11.02"]
[EventCountry "SWE"]
[SourceTitle "playchess.com"]
[Source "ChessBase"]
[SourceQuality "1"]
[TimeControl "900+5"]

1. e4 {[%emt 0:00:00]} c6 {[%emt 0:00:00]} 2. d4 {[%emt 0:00:00]} d5 {[%emt 0:00:00]} 3. e5 {[%emt 0:00:00]} c5 {[%emt 0:00:00]} 4. dxc5 {[%emt 0:00:00]} e6 {[%emt 0:00:00]} 5. a3 {[%emt 0:00:05] B12: Caro-Kann: Advance Variation} (5. Nf3 Bxc5 6. a3 Nd7 7. Bd3 f6 8. b4 Be7 9. Bb2 fxe5 10. Nxe5 Nxe5 11. Bxe5 Bf6 12. O-O Nh6 13. Bxf6 Qxf6 {1-0 (70) Jakovenko,D (2735)-Fedoseev,V (2706) Poikovsky 2018}) 5... Nc6 {[%emt 0:00:02]} 6. b4 {[%emt 0:00:16]} Nxe5 {[%emt 0:00:47]} 7. Bb2 {[%emt 0:00:02]} Qc7 {[%emt 0:00:07]} 8. Nd2 {[%emt 0:00:23]} Nf6 {[%emt 0:00:16]} 9. Ngf3 {[%emt 0:00:02]} Nxf3+ {[%emt 0:00:21]} 10. Nxf3 {[%emt 0:00:02]} Be7 {[%emt 0:00:09]} 11. c4 $146 {[%emt 0:00:51]} ({Predecessor:} 11. Be5 Qd8 12. Bd3 O-O {1-0 (37) Georgiou,I (2123)-Zabrakos,E Heraklio 2001}) 11... O-O {[%emt 0:00:40]} 12. Bd3 {[%emt 0:00:07]} dxc4 {[%emt 0:00:27]} 13. Bxc4 {[%emt 0:00:01]} b6 {[%emt 0:00:09]} 14. O-O {[%emt 0:00:52]} bxc5 {[%emt 0:00:31]} 15. Rc1 {[%emt 0:00:15]} Bb7 {[%emt 0:00:33]} 16. bxc5 {[%emt 0:00:08]} Rfd8 {[%emt 0:00:29]} 17. Qe2 {[%emt 0:00:10]} Qf4 {[%emt 0:00:24]} 18. Bb5 {[%emt 0:01:25]} Bd5 {[%emt 0:00:53]} 19. Be5 {[%emt 0:03:07]} Qg4 {[%emt 0:00:43]} 20. h3 {[%emt 0:00:52]} Qh5 {[%emt 0:00:16]} 21. Bxf6 {[%emt 0:02:03]} Bxf6 {[%emt 0:00:05]} 22. Bc4 {[%emt 0:00:07]} Rac8 {[%emt 0:00:25]} 23. Bxd5 {[%emt 0:00:04]} Rxd5 {[%emt 0:00:07]} 24. c6 {[%emt 0:00:07]} h6 {[%emt 0:00:34]} 25. Qa6 {[%emt 0:00:10]} Rc7 {[%emt 0:00:01]} 26. Qc4 {[%emt 0:01:25]} Qf5 {[%emt 0:00:37]} 27. Rc2 {[%emt 0:00:36]} Qd3 {[%emt 0:00:33]} 28. a4 {[%emt 0:00:37]} e5 {[%emt 0:01:29]} 29. Qxd3 Rxd3 {[%emt 0:00:01]} 30. Rb1 {[%emt 0:00:32]} Kh7 {[%emt 0:01:24]} 31. Nd2 {[%emt 0:01:41]} Rd6 {[%emt 0:00:07]} 32. Rb7 {[%emt 0:00:12]} Rcxc6 {[%emt 0:00:09]} 33. Rxc6 {[%emt 0:00:01]} Rxc6 {[%emt 0:00:01]} 34. Rxa7 {[%emt 0:00:03]} Rc2 {[%emt 0:01:00]} 35. Ne4 {[%emt 0:00:09]} Kg6 {[%emt 0:00:06]} 36. Ra6 {[%emt 0:00:28]} Rc1+ {[%emt 0:00:33]} 37. Kh2 {[%emt 0:00:01]} Kf5 {[%emt 0:00:02]} 38. Nd6+ {[%emt 0:00:23]} Kg6 {[%emt 0:00:17]} 39. Ne4 {[%emt 0:00:46]} Kf5 {[%emt 0:00:10]} 40. Nxf6 {[%emt 0:00:03]} gxf6 {[%emt 0:00:01]} 41. g3 {[%emt 0:00:02]} Rc2 {[%emt 0:00:12]} 42. Kg2 {[%emt 0:00:01]} e4 {[%emt 0:00:52]} 43. Kf1 {[%emt 0:00:06]} Ra2 {[%emt 0:00:27]} 44. Ra7 {[%emt 0:00:08]} Ke5 {[%emt 0:00:34]} 45. a5 f5 {[%emt 0:00:06]} 46. a6 {[%emt 0:00:16]} f6 {[%emt 0:00:39]} 47. Ra8 {[%emt 0:00:02]} f4 {[%emt 0:00:04]} 48. a7 {[%emt 0:00:01]} Kf5 {[%emt 0:00:07]} 49. g4+ {[%emt 0:00:00]} Kg5 {[%emt 0:00:15]} 50. Rg8+ {[%emt 0:00:02]} Kh4 {[%emt 0:00:04]} 51. a8=Q $18 {[%emt 0:00:02]} Rb2 {[%emt 0:00:04]} 52. Qxe4 {[%emt 0:00:06]} 1-0